bitfinex/quotes_SOLUSD_20250604
["timestamp","ask_amount","ask_price","bid_price","bid_amount"]
[1748998063993,6.0984,154.59,154.51,22.14050206]
[1748998064184,12.1423,154.62,154.54,22.14050206]
[1748998064185,0.14216157,154.61,154.54,22.14050206]
[1748998064389,26.0,154.59,154.54,22.14050206]
[1748998064584,48.14050206,154.59,154.55,22.14050206]
[1748998065295,22.14050206,154.59,154.55,22.14050206]
[1748998065499,74.56964886,154.64,154.57,22.14050206]
[1748998065500,55.92,154.64,154.57,22.14050206]
[1748998065674,22.14050206,154.62,154.58,22.14050206]
[1748998066382,22.14050206,154.63,154.58,22.14050206]
[1748998066589,22.14050206,154.62,154.58,22.14050206]
[1748998066787,10.56,154.65,154.58,22.14050206]
[1748998066989,22.14050206,154.62,154.58,22.14050206]
[1748998068000,10.56,154.65,154.55,10.56]
[1748998068001,22.14050206,154.59,154.55,10.56]
[1748998068176,22.14050206,154.58,154.55,40.12]
[1748998068375,22.14050206,154.58,154.54,63.91310206]
[1748998068905,22.14050206,154.59,154.55,22.14050206]
[1748998069199,22.14050206,154.59,154.54,41.7726]
[1748998069404,22.14050206,154.59,154.55,22.14050206]
[1748998072576,26.0,154.63,154.56,22.14050206]
[1748998072773,26.0,154.63,154.54,41.7726]
[1748998072774,22.14050206,154.62,154.57,22.14050206]
[1748998072993,22.14050206,154.61,154.54,41.7726]
[1748998073201,22.14050206,154.6,154.55,22.14050206]
[1748998073385,22.14050206,154.59,154.56,40.1]
[1748998074410,22.14050206,154.58,154.56,40.1]
[1748998074979,22.14050206,154.59,154.56,40.1]
[1748998075200,14.72027474,154.59,154.56,40.1]
[1748998075401,6.18636157,154.63,154.56,40.1]
[1748998075402,14.72027474,154.58,154.56,40.1]
[1748998076100,14.72027474,154.57,154.53,14.72027474]
[1748998076295,14.72027474,154.55,154.52,10.56]
[1748998076630,14.72027474,154.54,154.5,1.5682]
[1748998076924,26.0,154.61,154.46,0.14216157]
[1748998076925,14.72027474,154.51,154.46,1.5297]
[1748998077120,14.72027474,154.56,154.45,5.06098335]
[1748998077121,14.72027474,154.48,154.45,5.06098335]
[1748998077286,14.72027474,154.5,154.46,40.1]
[1748998077486,14.72027474,154.5,154.46,54.82027474]
[1748998077788,14.72027474,154.52,154.48,14.72027474]
[1748998078010,14.72027474,154.53,154.48,14.72027474]
[1748998079285,22.09671505,154.53,154.48,22.09671505]
[1748998079785,22.09671505,154.53,154.49,22.09671505]
[1748998079985,36.56,154.57,154.5,22.09671505]
[1748998079986,22.09671505,154.55,154.5,22.09671505]
[1748998080207,22.09671505,154.55,154.51,62.19671505]
[1748998080408,22.09671505,154.54,154.51,40.1]
[1748998080740,22.09671505,154.52,154.51,40.1]
[1748998081113,26.0,154.57,154.51,40.1]
[1748998081316,26.0,154.59,154.53,22.09671505]
[1748998081615,22.09671505,154.54,154.51,40.1]
[1748998081815,22.09671505,154.53,154.51,40.1]
[1748998081994,22.09671505,154.54,154.51,40.1]
[1748998082406,26.0,154.59,154.52,22.09671505]
[1748998082407,22.09671505,154.56,154.52,22.09671505]
[1748998082588,0.14216157,154.61,154.53,22.09671505]
[1748998082589,22.09671505,154.58,154.53,22.09671505]
[1748998083312,22.09671505,154.57,154.53,22.09671505]
[1748998083692,22.09671505,154.57,154.52,22.09671505]
[1748998084216,22.09671505,154.56,154.51,72.5843]
[1748998084434,0.14216157,154.61,154.49,10.56]
[1748998084435,22.09671505,154.52,154.49,10.56]
[1748998084731,22.09671505,154.5,154.46,23.65391505]
[1748998084925,22.09671505,154.5,154.48,40.1]
[1748998085236,22.09671505,154.51,154.48,40.1]
[1748998087607,22.09671505,154.5,154.46,49.65391505]
[1748998087789,22.09671505,154.5,154.47,40.1]
[1748998088405,22.09671505,154.49,154.47,40.1]
[1748998089536,22.09671505,154.49,154.46,26.0]
[1748998089695,22.09671505,154.49,154.46,40.1]
[1748998090091,22.09671505,154.49,154.47,40.1]
[1748998090615,6.57178471,154.55,154.47,40.1]
[1748998090616,22.09671505,154.5,154.47,40.1]
[1748998092307,22.09671505,154.52,154.48,22.09671505]
[1748998092495,26.0,154.54,154.49,22.09671505]
[1748998092496,22.09671505,154.54,154.49,22.09671505]
[1748998092693,22.09671505,154.55,154.5,22.09671505]
[1748998095138,22.09671505,154.54,154.5,22.09671505]
[1748998097202,22.09671505,154.55,154.5,22.09671505]
[1748998097995,22.09671505,154.55,154.48,0.28432314]
[1748998098199,22.09671505,154.54,154.5,22.09671505]
[1748998099926,22.09671505,154.54,154.48,0.28432314]
[1748998100119,22.09671505,154.54,154.5,22.09671505]
[1748998101235,14.7284993,154.54,154.5,14.7284993]
[1748998101936,14.7284993,154.55,154.51,14.7284993]
[1748998102106,14.7284993,154.56,154.52,40.1]
[1748998102508,14.7284993,154.55,154.52,40.1]
[1748998102713,0.14216157,154.58,154.52,40.1]
[1748998103011,14.7284993,154.55,154.52,40.1]
[1748998103527,14.7284993,154.54,154.52,40.1]
[1748998103726,14.7284993,154.53,154.47,40.7284993]
[1748998103931,14.7284993,154.49,154.45,10.56]
[1748998104132,14.7284993,154.49,154.46,40.1]
[1748998106633,14.7284993,154.48,154.45,10.56]
[1748998106858,14.7284993,154.48,154.45,50.66]
[1748998107342,0.42648471,154.55,154.46,14.7284993]
[1748998107343,14.7284993,154.5,154.46,14.7284993]
[1748998107849,14.7284993,154.51,154.46,14.7284993]
[1748998108612,14.7284993,154.5,154.46,14.7284993]
[1748998109109,14.7284993,154.5,154.47,40.1]
[1748998111043,0.28432314,154.57,154.48,14.7284993]
[1748998111337,14.7284993,154.54,154.49,14.7284993]
[1748998111521,18.79181043,154.58,154.49,14.7284993]
[1748998111727,14.7284993,154.54,154.49,14.7284993]
[1748998111931,14.7284993,154.54,154.47,40.1]
[1748998111932,26.0,154.57,154.5,14.7284993]
[1748998112136,14.7284993,154.54,154.5,14.7284993]
[1748998115797,14.7284993,154.53,154.48,14.7284993]
[1748998115957,14.7284993,154.52,154.48,14.7284993]
[1748998116967,14.7284993,154.52,154.49,40.1]
[1748998117203,14.7284993,154.53,154.49,40.1]
[1748998117367,0.14216157,154.56,154.49,54.8284993]
[1748998117368,14.7284993,154.54,154.49,54.8284993]
[1748998118085,14.7284993,154.53,154.49,54.8284993]
[1748998119071,14.7284993,154.54,154.5,14.7284993]
[1748998119496,14.7284993,154.54,154.49,40.1]
[1748998119683,26.0,154.57,154.49,54.8284993]
[1748998119684,14.7284993,154.53,154.49,54.8284993]
[1748998123179,14.7284993,154.5,154.46,14.7284993]
[1748998123373,14.7284993,154.5,154.48,26.0]
[1748998123780,14.7284993,154.51,154.48,26.0]
[1748998124169,14.7284993,154.52,154.48,26.0]
[1748998124378,14.7284993,154.53,154.48,40.7284993]
[1748998124785,0.14216157,154.56,154.48,40.7284993]
[1748998125083,14.7284993,154.53,154.48,40.7284993]
[1748998127382,14.7284993,154.54,154.49,14.7284993]
[1748998129973,14.7284993,154.53,154.49,14.7284993]
[1748998130487,14.7284993,154.53,154.48,14.7284993]
[1748998131688,14.7284993,154.53,154.47,66.1]
[1748998131884,14.7284993,154.53,154.48,14.7284993]
[1748998133262,14.7284993,154.51,154.47,80.8284993]
[1748998133474,14.7284993,154.51,154.47,54.8284993]
[1748998133792,14.7284993,154.52,154.48,40.1]
[1748998133969,14.7284993,154.53,154.48,54.8284993]
[1748998135485,14.7284993,154.54,154.49,14.7284993]
[1748998137695,14.7284993,154.53,154.49,14.7284993]
[1748998138188,26.0,154.57,154.49,14.7284993]
[1748998138189,14.7284993,154.54,154.49,14.7284993]
[1748998138497,14.7284993,154.54,154.5,14.7284993]
[1748998140092,14.7284993,154.54,154.48,40.1]
[1748998140295,14.7284993,154.53,154.49,14.7284993]
[1748998140494,14.7284993,154.53,154.48,40.1]
[1748998140667,14.7284993,154.52,154.48,54.8284993]
[1748998140863,14.7284993,154.52,154.48,40.1]
[1748998141068,14.7284993,154.51,154.48,40.1]
[1748998141268,14.7284993,154.52,154.48,40.1]
[1748998141789,14.7284993,154.54,154.49,14.7284993]
[1748998142375,14.7284993,154.55,154.5,14.7284993]
[1748998143788,14.7284993,154.56,154.51,14.7284993]
[1748998144394,14.7284993,154.56,154.52,14.7284993]
[1748998144573,14.7284993,154.56,154.51,14.7284993]
[1748998147399,14.7284993,154.55,154.51,14.7284993]
[1748998147586,14.7284993,154.56,154.51,14.7284993]
[1748998148175,14.7284993,154.56,154.51,103.3284993]
[1748998148382,14.7284993,154.55,154.51,103.3284993]
[1748998149301,14.7284993,154.56,154.51,103.3284993]
[1748998150275,14.7284993,154.57,154.52,14.7284993]
[1748998150476,20.41631043,154.61,154.54,14.7284993]
[1748998150477,1.6245,154.61,154.54,14.7284993]
[1748998150777,14.7284993,154.6,154.55,14.7284993]
[1748998152783,14.7284993,154.6,154.53,40.08]
[1748998152784,14.7284993,154.62,154.57,14.7284993]
[1748998152982,14.7284993,154.62,154.58,40.08]
[1748998153680,27.5117,154.65,154.58,54.8084993]
[1748998153886,14.7284993,154.63,154.59,14.7284993]
[1748998154975,14.7284993,154.62,154.58,40.08]
[1748998155304,14.7284993,154.63,154.58,54.8084993]
[1748998155488,14.7284993,154.62,154.58,40.08]
[1748998157780,14.7284993,154.63,154.58,54.8084993]
[1748998158279,26.0,154.65,154.59,14.7284993]
[1748998158508,10.54,154.66,154.59,14.7284993]
[1748998158509,14.7284993,154.64,154.59,14.7284993]
[1748998159679,14.7284993,154.64,154.6,14.7284993]
[1748998160107,14.7284993,154.64,154.59,14.7284993]
[1748998161391,6.0584,154.67,154.6,14.7284993]
[1748998161711,14.7284993,154.65,154.6,14.7284993]
[1748998162690,14.7284993,154.65,154.61,14.7284993]
[1748998163105,14.7284993,154.66,154.61,14.7284993]
[1748998163815,14.7284993,154.65,154.61,14.7284993]
[1748998164014,14.7284993,154.63,154.57,16.5561]
[1748998164215,14.7284993,154.6,154.57,10.54]
[1748998164398,14.7284993,154.6,154.56,41.6109]
[1748998164399,14.7284993,154.6,154.56,56.3393993]
[1748998164595,14.7284993,154.61,154.56,56.3393993]
[1748998164823,14.7284993,154.61,154.56,82.3393993]
[1748998165121,14.7284993,154.62,154.58,14.7284993]
[1748998165484,14.7284993,154.63,154.58,14.7284993]
[1748998165888,14.7284993,154.64,154.59,14.7284993]
[1748998166188,14.7284993,154.64,154.6,14.7284993]
[1748998166808,14.7284993,154.64,154.59,14.7284993]
[1748998167326,14.7284993,154.64,154.6,14.7284993]
[1748998167615,14.7284993,154.64,154.61,40.06]
[1748998167791,26.0,154.67,154.61,40.06]
[1748998167792,14.7284993,154.65,154.61,40.06]
[1748998168390,14.7284993,154.65,154.61,54.7884993]
[1748998168802,14.7284993,154.66,154.61,54.7884993]
[1748998168991,14.7284993,154.66,154.62,14.7284993]
[1748998169198,1.5743,154.69,154.63,14.7284993]
[1748998169199,14.7284993,154.67,154.63,14.7284993]
[1748998169993,14.7284993,154.67,154.62,14.7284993]
[1748998171715,14.7284993,154.68,154.64,14.7284993]
[1748998172025,14.7284993,154.69,154.65,14.7284993]
[1748998172246,1.5049,154.73,154.66,40.06]
[1748998172389,14.7284993,154.7,154.66,40.06]
[1748998173298,14.7284993,154.68,154.66,40.06]
[1748998174017,14.7284993,154.69,154.66,40.06]
[1748998174914,14.7284993,154.69,154.64,12.0494993]
[1748998176129,14.7284993,154.69,154.65,40.04]
[1748998177701,14.7284993,154.69,154.65,143.3684993]
[1748998178726,14.7284993,154.7,154.65,143.3684993]
[1748998179219,14.7284993,154.69,154.65,143.3684993]
[1748998181310,14.7284993,154.69,154.65,128.64]
[1748998181635,14.7284993,154.67,154.65,128.64]
[1748998182015,1.5049,154.73,154.65,128.64]
[1748998182219,14.7284993,154.69,154.65,128.64]
[1748998182537,14.7284993,154.68,154.65,128.64]
[1748998183309,14.7284993,154.67,154.65,88.6]
[1748998183514,0.14216157,154.71,154.65,88.6]
[1748998183710,14.7284993,154.7,154.65,14.7284993]
[1748998184631,14.7284993,154.69,154.65,14.7284993]
[1748998186640,14.7284993,154.7,154.65,14.7284993]
[1748998186834,14.7284993,154.69,154.65,14.7284993]
[1748998188011,14.7284993,154.7,154.65,14.7284993]
[1748998188655,26.0,154.74,154.65,14.7284993]
[1748998188656,14.7284993,154.69,154.65,14.7284993]
[1748998189345,14.7284993,154.68,154.64,14.7284993]
[1748998189534,14.7284993,154.68,154.66,40.02]
[1748998190337,14.7284993,154.69,154.66,40.02]
[1748998201060,14.7284993,154.68,154.66,40.02]
[1748998201352,14.7284993,154.67,154.62,99.12]
[1748998201675,14.7284993,154.64,154.62,88.6]
[1748998201974,14.7284993,154.65,154.61,88.6]
[1748998202149,14.7284993,154.65,154.61,128.62]
[1748998202350,0.14216157,154.69,154.61,128.62]
[1748998202351,14.7284993,154.64,154.61,128.62]
[1748998202546,14.7284993,154.65,154.61,128.62]
[1748998202987,14.7284993,154.66,154.61,143.3484993]
[1748998203194,14.7284993,154.66,154.62,14.7284993]
[1748998204201,38.1264,154.7,154.62,14.7284993]
[1748998204510,14.7284993,154.68,154.64,14.7284993]
[1748998204800,14.7284993,154.7,154.65,54.7484993]
[1748998207196,26.0,154.73,154.65,40.02]
[1748998207418,14.7284993,154.68,154.65,40.02]
[1748998208329,14.7284993,154.66,154.62,10.52]
[1748998208491,14.7284993,154.65,154.62,10.52]
[1748998208694,14.7284993,154.65,154.64,26.0]
[1748998208900,18.79181043,154.64,154.54,16.2955993]
[1748998209101,14.7284993,154.58,154.55,40.02]
[1748998209393,14.7284993,154.57,154.55,66.02]
[1748998209596,14.7284993,154.59,154.55,66.02]
[1748998209895,14.7284993,154.58,154.55,66.02]
[1748998210828,10.52,154.64,154.57,14.7284993]
[1748998210994,14.7284993,154.63,154.58,14.7284993]
[1748998212541,26.14216157,154.67,154.59,14.7284993]
[1748998212542,14.7284993,154.64,154.59,14.7284993]
[1748998212835,14.7284993,154.64,154.6,40.02]
[1748998214911,14.7284993,154.64,154.6,54.7484993]
[1748998216144,14.7284993,154.64,154.6,143.3484993]
[1748998217976,18.4555,154.68,154.6,143.3484993]
[1748998217977,14.7284993,154.66,154.62,14.7284993]
[1748998218124,14.7284993,154.67,154.63,14.7284993]
[1748998218653,14.7284993,154.67,154.62,40.7284993]
[1748998219874,14.7284993,154.67,154.63,14.7284993]
[1748998221526,18.5932,154.72,154.63,14.7284993]
[1748998221729,14.7284993,154.69,154.64,14.7284993]
[1748998223941,18.5932,154.72,154.64,14.7284993]
[1748998223942,14.7284993,154.68,154.64,14.7284993]
[1748998228076,14.7284993,154.68,154.64,103.3284993]
[1748998230181,14.7284993,154.68,154.64,88.6]
[1748998230761,14.7284993,154.68,154.64,103.3284993]
[1748998232680,14.7284993,154.68,154.65,40.0]
[1748998234987,14.7284993,154.69,154.65,40.0]
[1748998236387,14.7284993,154.68,154.65,40.0]
[1748998240886,14.7284993,154.69,154.65,40.0]
[1748998242289,0.14216157,154.73,154.66,14.7284993]
[1748998242494,29.14964886,154.74,154.67,14.7284993]
[1748998242495,14.7284993,154.71,154.67,14.7284993]
[1748998242673,10.5,154.74,154.67,14.7284993]
[1748998242876,14.7284993,154.72,154.67,103.3284993]
[1748998243195,14.7284993,154.72,154.67,14.7284993]
[1748998243690,14.7284993,154.71,154.67,14.7284993]
[1748998245688,14.7284993,154.72,154.68,14.7284993]
[1748998247199,14.7284993,154.73,154.68,40.7284993]
[1748998247572,14.7284993,154.73,154.69,14.7284993]
[1748998248701,14.7284993,154.73,154.68,129.3284993]
[1748998248892,14.7284993,154.74,154.7,14.7284993]
[1748998249198,14.7284993,154.74,154.7,54.7084993]
[1748998249577,14.7284993,154.74,154.7,39.98]
[1748998250274,1.6127,154.77,154.7,39.98]
[1748998250490,14.7284993,154.73,154.7,39.98]
[1748998251694,14.7284993,154.75,154.71,14.7284993]
[1748998252002,10.5,154.78,154.72,14.7284993]
[1748998252219,14.7284993,154.76,154.72,14.7284993]
[1748998253089,14.7284993,154.77,154.72,14.7284993]
[1748998254983,8.10986157,154.81,154.72,14.7284993]
[1748998255180,14.7284993,154.77,154.72,16.2639993]
[1748998255886,14.7284993,154.77,154.73,14.7284993]
[1748998257432,14.7284993,154.79,154.75,14.7284993]
[1748998257718,14.7284993,154.79,154.75,54.6884993]
[1748998257925,10.5,154.82,154.75,54.6884993]
[1748998258096,14.7284993,154.79,154.75,54.6884993]
[1748998258501,0.14216157,154.83,154.75,54.6884993]
[1748998258704,14.7284993,154.8,154.75,54.6884993]
[1748998259619,0.14216157,154.83,154.75,54.6884993]
[1748998259620,14.7284993,154.79,154.75,54.6884993]
[1748998260809,14.7284993,154.78,154.75,39.96]
[1748998261320,14.7284993,154.77,154.75,39.96]
[1748998261531,14.7284993,154.78,154.75,39.96]
[1748998263024,18.79181043,154.83,154.75,39.96]
[1748998263201,14.7284993,154.78,154.75,39.96]
[1748998264702,18.79181043,154.83,154.75,39.96]
[1748998265105,14.7284993,154.78,154.75,39.96]
[1748998265538,14.7284993,154.79,154.75,39.96]
[1748998266332,18.79181043,154.83,154.75,39.96]
[1748998266545,14.7284993,154.79,154.75,39.96]
[1748998267399,18.79181043,154.83,154.75,54.6884993]
[1748998267626,14.7284993,154.79,154.75,54.6884993]
[1748998269951,14.7284993,154.79,154.75,39.96]
[1748998271125,14.7284993,154.79,154.75,54.6884993]
[1748998271733,0.14216157,154.83,154.76,14.7284993]
[1748998272040,0.14216157,154.83,154.75,54.6884993]
[1748998272245,14.7284993,154.79,154.75,54.6884993]
[1748998274320,0.14216157,154.83,154.75,54.6884993]
[1748998274521,14.7284993,154.79,154.75,143.2884993]
[1748998275128,14.7284993,154.79,154.75,128.56]
[1748998275331,0.14216157,154.83,154.75,128.56]
[1748998275332,9.39667074,154.78,154.75,88.6]
[1748998275554,18.79181043,154.83,154.75,128.54]
[1748998275555,9.39667074,154.77,154.75,128.54]
[1748998275923,9.39667074,154.78,154.75,128.54]
[1748998278252,9.39667074,154.78,154.75,39.94]
[1748998282654,18.79181043,154.83,154.75,39.94]
[1748998282836,9.39667074,154.79,154.75,49.33667074]
[1748998283331,9.39667074,154.79,154.75,39.94]
[1748998284444,18.79181043,154.83,154.75,39.94]
[1748998284639,9.39667074,154.79,154.75,39.94]
[1748998285860,18.79181043,154.83,154.75,39.94]
[1748998286037,9.39667074,154.79,154.75,39.94]
[1748998287559,9.39667074,154.79,154.75,39.92]
[1748998289155,9.39667074,154.78,154.75,39.92]
[1748998290165,9.39667074,154.78,154.73,10.48]
[1748998290166,9.39667074,154.76,154.72,88.6]
[1748998290372,9.39667074,154.73,154.69,39.92]
[1748998290539,9.39667074,154.7,154.68,50.4]
[1748998290861,9.39667074,154.69,154.64,10.48]
[1748998291166,37.58668296,154.72,154.64,50.4]
[1748998291167,9.39667074,154.67,154.64,50.4]
[1748998291547,9.39667074,154.68,154.64,59.79667074]
[1748998291865,9.39667074,154.68,154.65,39.92]
[1748998293165,14.70282228,154.68,154.65,39.92]
[1748998293857,10.48,154.74,154.65,39.92]
[1748998294038,14.70282228,154.7,154.66,14.70282228]
[1748998296358,14.70282228,154.69,154.67,39.94]
[1748998298949,14.70282228,154.7,154.67,39.94]
[1748998300452,14.70282228,154.71,154.67,39.94]
[1748998300656,14.70282228,154.7,154.67,39.94]
[1748998300859,14.70282228,154.69,154.67,39.94]
[1748998302449,14.70282228,154.7,154.67,39.94]
[1748998303373,14.70282228,154.69,154.67,39.94]
[1748998308944,10.48,154.74,154.67,39.94]
[1748998309175,14.70282228,154.7,154.67,39.94]
[1748998309473,14.70282228,154.69,154.67,39.94]
[1748998311676,36.48,154.76,154.67,39.94]
[1748998311857,14.70282228,154.7,154.67,39.94]
[1748998312758,14.70282228,154.69,154.67,39.94]
[1748998313255,9.4080203,154.7,154.67,39.94]
[1748998313655,9.4080203,154.71,154.67,39.94]
[1748998314689,7.6723,154.78,154.69,35.4080203]
[1748998314988,18.6592,154.82,154.74,9.4080203]
[1748998315157,12.0855,154.82,154.76,9.4080203]
[1748998315352,9.4080203,154.8,154.76,9.4080203]
[1748998316369,9.4080203,154.8,154.75,49.3280203]
[1748998316993,1.6055,154.82,154.75,49.3280203]
[1748998317177,14.68041694,154.8,154.75,54.60041694]
[1748998317998,14.68041694,154.8,154.76,14.68041694]
[1748998318570,14.68041694,154.83,154.79,14.68041694]
[1748998318802,14.68041694,154.83,154.8,39.92]
[1748998319278,14.68041694,154.82,154.8,39.92]
[1748998320286,14.68041694,154.83,154.8,39.92]
[1748998323365,10.62216157,154.87,154.8,54.60041694]
[1748998323366,10.48,154.87,154.8,54.60041694]
[1748998323671,14.68041694,154.85,154.81,14.68041694]
[1748998324284,14.68041694,154.87,154.83,14.68041694]
[1748998324489,1.5512,154.9,154.86,14.68041694]
[1748998324490,14.68041694,154.9,154.86,14.68041694]
[1748998324792,14.68041694,154.9,154.85,14.68041694]
[1748998324969,14.68041694,154.9,154.86,14.68041694]
[1748998325168,6.5425,154.93,154.86,14.68041694]
[1748998325469,14.68041694,154.91,154.86,14.68041694]
[1748998326374,14.68041694,154.91,154.87,14.68041694]
[1748998327387,14.68041694,154.91,154.86,14.68041694]
[1748998328103,14.68041694,154.91,154.87,14.68041694]
[1748998329195,14.68041694,154.92,154.87,14.68041694]
[1748998330597,14.68041694,154.91,154.85,10.46]
[1748998330895,14.68041694,154.91,154.86,14.68041694]
[1748998331325,14.68041694,154.9,154.86,14.68041694]
[1748998332883,14.68041694,154.91,154.86,14.68041694]
[1748998333823,0.14216157,154.94,154.85,10.46]
[1748998333824,14.68041694,154.88,154.85,10.46]
[1748998334013,14.68041694,154.88,154.83,14.68041694]
[1748998334014,14.68041694,154.88,154.86,39.88]
[1748998334178,14.68041694,154.88,154.83,14.68041694]
[1748998334385,14.68041694,154.86,154.82,14.68041694]
[1748998334715,0.14216157,154.91,154.83,39.86]
[1748998334716,14.68041694,154.85,154.83,39.86]
[1748998334922,14.68041694,154.85,154.81,10.46]
[1748998335100,14.68041694,154.85,154.82,39.86]
[1748998335296,0.14216157,154.89,154.82,39.86]
[1748998335486,14.68041694,154.85,154.81,10.46]
[1748998335686,14.68041694,154.85,154.82,39.86]
[1748998335985,16.83716157,154.91,154.83,14.68041694]
[1748998336187,1.5466,154.95,154.86,14.68041694]
[1748998336188,0.14216157,154.93,154.86,14.68041694]
[1748998336387,14.68041694,154.91,154.87,39.86]
[1748998336628,14.68041694,154.91,154.87,54.54041694]
[1748998337293,0.14216157,154.94,154.87,54.54041694]
[1748998337492,14.68041694,154.92,154.87,39.86]
[1748998337677,14.68041694,154.92,154.87,54.54041694]
[1748998337879,14.68041694,154.91,154.87,54.54041694]
[1748998338284,14.68041694,154.92,154.87,54.54041694]
[1748998338515,14.68041694,154.92,154.88,14.68041694]
[1748998338715,18.2416,154.95,154.89,14.68041694]
[1748998338716,10.44,154.95,154.89,14.68041694]
[1748998338920,36.44,154.95,154.89,14.68041694]
[1748998339107,26.0,154.95,154.89,14.68041694]
[1748998339416,14.68041694,154.94,154.89,14.68041694]
[1748998339996,14.68041694,154.92,154.88,14.68041694]
[1748998340211,14.68041694,154.91,154.87,39.86]
[1748998340510,14.68041694,154.92,154.88,54.54041694]
[1748998340720,26.0,154.95,154.89,14.68041694]
[1748998340894,14.68041694,154.93,154.89,14.68041694]
[1748998341286,26.0,154.95,154.89,14.68041694]
[1748998341489,14.68041694,154.93,154.89,14.68041694]
[1748998341892,14.68041694,154.93,154.88,54.54041694]
[1748998342101,14.68041694,154.93,154.89,14.68041694]
[1748998344425,14.68041694,154.92,154.88,54.54041694]
[1748998345292,26.0,154.95,154.88,54.54041694]
[1748998345497,14.68041694,154.94,154.89,14.68041694]
[1748998346402,14.68041694,154.94,154.89,103.28041694]
[1748998347300,14.68041694,154.93,154.89,103.28041694]
[1748998350201,14.68041694,154.94,154.89,103.28041694]
[1748998351095,14.68041694,154.94,154.9,14.68041694]
[1748998351722,14.68041694,154.95,154.91,14.68041694]
[1748998351896,14.68041694,154.95,154.92,39.84]
[1748998353529,18.269,154.99,154.92,39.84]
[1748998353728,14.68041694,154.95,154.92,39.84]
[1748998356445,18.269,154.99,154.92,39.84]
[1748998356604,14.68041694,154.96,154.92,54.52041694]
[1748998356807,12.014,154.99,154.92,54.52041694]
[1748998357042,14.68041694,154.97,154.92,54.52041694]
[1748998357210,14.68041694,154.97,154.93,14.68041694]
[1748998357617,26.14216157,155.0,154.93,14.68041694]
[1748998357767,14.68041694,154.98,154.93,14.68041694]
[1748998358454,14.68041694,154.98,154.94,14.68041694]
[1748998358833,14.68041694,154.99,154.94,14.68041694]
[1748998359161,14.68041694,155.0,154.95,14.68041694]
[1748998359332,14.68041694,155.0,154.96,39.84]
[1748998359657,14.68041694,154.99,154.96,39.84]
[1748998361066,36.44,155.02,154.96,39.84]
[1748998361450,14.68041694,154.99,154.96,39.84]
[1748998363659,36.44,155.02,154.96,39.84]
[1748998363840,14.68041694,154.99,154.96,39.84]
[1748998364167,26.0,155.02,154.96,39.84]
[1748998364373,14.68041694,155.0,154.96,54.52041694]
[1748998365077,14.82257851,155.04,154.96,54.52041694]
[1748998365078,14.68041694,155.01,154.96,54.52041694]
[1748998366568,14.68041694,154.98,154.96,39.84]
[1748998367077,14.68041694,154.97,154.96,39.84]
[1748998367274,14.68041694,154.97,154.92,27.6047]
[1748998367576,0.14216157,155.01,154.92,27.6047]
[1748998367577,14.68041694,154.95,154.93,39.82]
[1748998367748,14.68041694,154.97,154.93,39.82]
[1748998367936,14.68041694,154.96,154.93,39.82]
[1748998368153,14.68041694,154.95,154.93,39.82]
[1748998368951,14.68041694,154.95,154.92,39.82]
[1748998369162,1.6208,155.0,154.92,39.82]
[1748998369373,14.68041694,154.93,154.91,99.04]
[1748998369679,14.68041694,154.92,154.9,88.6]
[1748998369855,14.68041694,154.91,154.86,6.4187]
[1748998370166,14.82257851,154.96,154.87,39.82]
[1748998370167,14.68041694,154.9,154.87,39.82]
[1748998370474,14.68041694,154.91,154.87,39.82]
[1748998371463,0.14216157,154.95,154.87,39.82]
[1748998371670,14.68041694,154.91,154.87,54.50041694]
[1748998372761,14.68041694,154.91,154.87,39.82]
[1748998373263,14.68041694,154.9,154.86,32.4187]
[1748998373469,14.68041694,154.9,154.87,39.82]
[1748998373674,14.68041694,154.91,154.87,39.82]
[1748998373981,14.68041694,154.91,154.87,54.50041694]
[1748998374280,14.68041694,154.91,154.88,39.82]
[1748998376570,14.68041694,154.94,154.89,14.68041694]
[1748998376985,14.68041694,154.94,154.9,14.68041694]
[1748998377478,14.68041694,154.93,154.88,39.82]
[1748998377674,14.68041694,154.92,154.88,54.50041694]
[1748998378384,14.68041694,154.93,154.88,54.50041694]
[1748998379181,14.68041694,154.93,154.89,14.68041694]
[1748998380363,26.14216157,154.98,154.89,14.68041694]
[1748998380364,14.68041694,154.94,154.89,14.68041694]
[1748998380798,14.68041694,154.94,154.9,14.68041694]